Cogmind - Beta 12 @@@ ROGUE MODE // 2023.03.14 @ 03:00:31 Player: Ms Vella Result: Destroyed by X-67 Chaingunner with Minigun Performance ------------- Evolutions (3) 1500 Regions Visited (7) 1400 Robots Destroyed (100) 500 Value Destroyed (2959) 2959 Prototype IDs (3) 60 Alien Tech Used (0) 0 Bonus (1156) 1156 TOTAL SCORE: 7575 Bonus ------- High Alert Combat Kills 335 Follower Combat Kills 127 Entered Garrisons 200 Entered DSFs 500 Friendly Fire -6 Cogmind --------- Core Integrity 0/700 Matter 108/300 Energy 100/100 System Corruption 0% Temperature Cool (0) Movement Core (700) Ox13 Location -7/DSF Parts ------- > --- POWER (2) -------- (None) > --- PROPULSION (3) --- (None) > --- UTILITY (6) ------ High-capacity Storage Unit > --- WEAPON (2) ------- (None) > --- INVENTORY (20) --- Medium Treads Improved Heat Sink Large Storage Unit Large Storage Unit High-capacity Matter Pod (200) Machine Analyzer Advanced Terrain Scan Processor Recalibrator Lightning Gun Lightning Gun Ion Cannon Ion Cannon Ion Cannon Peak State ------------ > --- POWER ------------ Reinforced Ion Engine Light Nuclear Core > --- PROPULSION ------- Medium Treads Medium Treads Medium Treads > --- UTILITY ---------- Improved Heat Sink High-capacity Storage Unit Improved Terrain Scanner Advanced Terrain Scan Processor Hardened Light Armor Plating Hacking Suite > --- WEAPON ----------- Heavy Particle Gun Flak Cannon > --- INVENTORY -------- Medium Treads Medium Treads Medium Treads Medium Treads Medium Treads Improved Heat Sink Large Storage Unit Large Storage Unit High-capacity Matter Pod Machine Analyzer Advanced Terrain Scan Processor Recalibrator Lightning Gun Lightning Gun Ion Cannon Ion Cannon Ion Cannon Heavy Assault Cannon Mini Grenade Launcher [Rating: 46] Favorites ----------- Power Deuterium Engine Engine Deuterium Engine Power Core Light Nuclear Core Propulsion Light Treads Treads Light Treads Leg Aluminum Leg Utility High-capacity Storage Unit Device Improved Heat Sink Storage High-capacity Storage Unit Processor Advanced Terrain Scan Processor Hackware Hacking Suite Protection Hardened Light Armor Plating Weapon Improved Light Cannon Energy Gun Heavy EM Pulse Gun Energy Cannon Ion Cannon Ballistic Gun Assault Rifle Ballistic Cannon Improved Light Cannon Launcher Mini Grenade Launcher Build | -11 -10 -10 -9 -8 -8 -7 -7 ------- Run | Jun Mat Min Mat Mat Gar Fac DSF Slots Evolved 6 | . . . 2 2 . 2 . Power 1 | . . . . 1 . . . Propulsion 1 | . . . 1 . . . . Utility 4 | . . . 1 1 . 2 . Weapon . | . . . . . . . . Parts Attached 102 | . 17 4 19 41 9 2 10 Power 16 | . 1 . 2 10 2 . 1 Engine 13 | . 1 . 2 10 . . . Core 3 | . . . . . 2 . 1 Reactor . | . . . . . . . . Propulsion 27 | . 6 1 5 11 . . 4 Treads 19 | . . . 4 11 . . 4 Leg 8 | . 6 1 1 . . . . Wheel . | . . . . . . . . Hover . | . . . . . . . . Flight . | . . . . . . . . Utility 22 | . 4 . 4 10 2 2 . Device 9 | . 3 . 1 3 1 1 . Storage 1 | . 1 . . . . . . Processor 1 | . . . . . . 1 . Hackware 1 | . . . . . 1 . . Protection 10 | . . . 3 7 . . . Artifact . | . . . . . . . . Weapon 37 | . 6 3 8 10 5 . 5 Energy Gun 14 | . 3 1 3 4 2 . 1 Energy Cannon 2 | . . . 1 . 1 . . Ballistic Gun 2 | . 2 . . . . . . Ballistic Cannon 10 | . 1 1 3 3 . . 2 Launcher 9 | . . 1 1 3 2 . 2 Special Weapon . | . . . . . . . . Impact Weapon . | . . . . . . . . Slashing Weapon . | . . . . . . . . Piercing Weapon . | . . . . . . . . Special Melee Weapon . | . . . . . . . . Unidentified Prototypes 1 | . . . . 1 . . . Corrupted Parts 3 | . 1 . 2 . . . . System Corruption 12 | . 3 . 9 . . . . Parts Lost 30 | . 4 . 5 2 1 . 18 Power 6 | . 1 . 1 1 . . 3 Propulsion 11 | . 1 . 2 1 . . 7 Utility 8 | . 1 . 1 . 1 . 5 Weapon 5 | . 1 . 1 . . . 3 Highest Loss Streak 10 | . 2 . 4 1 1 . 10 To Critical Strikes 1 | . 1 . . . . . . Average Slot Usage (%) 94 | . 97 100 91 93 99 97 55 Engine 13 | . 13 14 10 17 9 7 1 Core 1 | . . . . . 8 7 2 Treads 17 | . . . 23 26 27 23 19 Leg 9 | . 27 28 8 . . . . Device 12 | . 13 14 11 15 8 15 4 Storage 10 | . 14 14 11 9 9 7 7 Hackware 1 | . . . . . 8 7 7 Protection 7 | . . . 9 11 9 7 1 Energy Gun 7 | . 13 7 6 3 7 7 4 Ballistic Gun 1 | . 10 . . . . . . Ballistic Cannon 9 | . 3 19 9 8 9 7 2 Naked Turns . | . . . . . . . . Heaviest Build 80 | 13 53 54 65 80 74 71 74 Greatest Support 84 | 20 20 20 60 84 84 84 84 Greatest Overweight (x) 2 | . 2 2 1 1 . . 1 Average Overweight (x) . | . . 2 . . . . . Largest Inventory Capacity 20 | . 20 20 20 20 20 20 20 Average Capacity 19 | . 15 20 20 20 20 20 20 Most Carried 20 | . 20 20 20 20 20 19 20 Average Carried 18 | . 12 19 19 19 20 18 16 Final Capacity 20 | 8 20 20 20 20 20 20 20 Final Carried 20 | 6 20 20 20 20 20 18 13 Class Distribution -------------------- 93% | Mutant 6% | Scavenger-Mutant Dominant Class ---------------- Mutant | -10/Materials Mutant | -10/Mines Mutant | -9/Materials Mutant | -8/Materials Mutant | -8/Garrison Scavenger-Mutant | -7/Factory Mutant | -7/DSF Resources | -11 -10 -10 -9 -8 -8 -7 -7 ----------- Run | Jun Mat Min Mat Mat Gar Fac DSF Matter Collected 2675 | 200 252 187 373 1268 335 . 60 Remotely . | . . . . . . . . Salvage Created 2329 | . 282 128 455 1061 262 . 141 Parts 180 | . 31 11 30 84 14 . 10 Haulers Intercepted 1 | . . . . 1 . . . Recyclers Shooed 4 | . 2 . 1 1 . . . Parts Field Recycled . | . . . . . . . . Retrieved Matter . | . . . . . . . . Parts Self-Destructed . | . . . . . . . . Prevented . | . . . . . . . . Kills | -11 -10 -10 -9 -8 -8 -7 -7 ------- Run | Jun Mat Min Mat Mat Gar Fac DSF Combat Hostiles Destroyed 85 | . 12 8 13 34 13 . 5 Guns 26 | . 12 2 4 6 1 . 1 Cannons 33 | . . 3 6 19 5 . . AOE 26 | . . 3 3 9 7 . 4 Classes Destroyed 16 | . 4 1 2 8 1 . . Worker 6 | . 1 1 1 3 . . . Builder 1 | . . . . 1 . . . Tunneler 1 | . . . . 1 . . . Hauler 1 | . . . . 1 . . . Recycler 3 | . . . 1 2 . . . Mechanic 2 | . . . . 2 . . . Operator 1 | . 1 . . . . . . Watcher 2 | . . . . 2 . . . Swarmer 29 | . 9 3 4 8 3 . 2 Grunt 36 | . 3 3 6 13 8 . 3 Brawler 4 | . . . . 4 . . . Protector 1 | . . . . 1 . . . Sentry 10 | . . . 3 7 . . . Specialist 1 | . . . . . 1 . . Hunter 2 | . . . . 1 1 . . Assembled 2 | . . 2 . . . . . Best Kill Streak 12 | . 5 4 6 12 6 . 3 Combat Bots Only 8 | . 5 3 6 8 6 . 3 Max Kills in Single Turn 3 | . 1 3 3 2 3 . 2 Gunslinging . | . . . . . . . . Exploded 3 | . . 2 3 2 3 . 2 Melee . | . . . . . . . . Uniques/NPCs Destroyed . | . . . . . . . . Combat | -11 -10 -10 -9 -8 -8 -7 -7 -------- Run | Jun Mat Min Mat Mat Gar Fac DSF Damage Taken 7242 | . 684 271 1454 1562 876 . 2395 Core 1529 | . 132 30 366 112 172 . 717 Absorbed by Shields 687 | . . . 46 585 56 . . Redirected to Shielding 10 | . . . . 10 . . . Regen/Repaired (Parts) 147 | . 31 . 116 . . . . Core Remaining (%) 47 | 100 . 35 8 . 48 . . Volleys Fired 303 | . 54 19 40 114 32 . 44 Largest 2 | . 2 2 2 2 2 . 1 Hottest 99 | . 70 84 90 99 99 . 60 Shots Fired 379 | . 73 37 50 130 45 . 44 Gun 159 | . 72 4 20 26 19 . 18 Cannon 184 | . 1 30 29 88 20 . 16 Launcher 36 | . . 3 1 16 6 . 10 Special . | . . . . . . . . Kinetic 233 | . 53 30 28 88 18 . 16 Thermal 68 | . 18 . 1 10 21 . 18 Explosive 36 | . . 3 1 16 6 . 10 Electromagnetic 42 | . 2 4 20 16 . . . Robot Hit Streak 14 | . 7 6 5 14 8 . 7 Robot Miss Streak 7 | . 6 3 3 7 7 . 3 Penetration Max 1 | . . . . 1 . . . Secondary Targets 1 | . 1 . . . . . . Max Gunslinging Chain 1 | . 1 . . . . . . Shots Hit Robots 223 | . 40 14 30 79 29 . 31 Core Hits 179 | . 19 10 21 71 36 . 22 Critical Kills . | . . . . . . . . Critical Parts Destroyed . | . . . . . . . . Critical Strikes 12 | . 2 1 2 7 . . . Burn 2 | . 2 . . . . . . Blast 8 | . . 1 1 6 . . . Corrupt 2 | . . . 1 1 . . . Melee Attacks . | . . . . . . . . Impact . | . . . . . . . . Slashing . | . . . . . . . . Piercing . | . . . . . . . . Sneak Attacks . | . . . . . . . . Combat Hostiles . | . . . . . . . . Follow-up Attacks . | . . . . . . . . Damage Inflicted 9280 | . 554 421 1099 4432 1142 . 1632 Guns 1474 | . 554 49 200 309 166 . 196 Cannons 4381 | . . 182 744 2557 296 . 602 Explosions 3418 | . . 190 155 1559 680 . 834 Melee . | . . . . . . . . Ramming 7 | . . . . 7 . . . Kinetic 4729 | . 348 182 744 2557 296 . 602 Thermal 732 | . 169 . . 201 166 . 196 Explosive 3387 | . . 190 155 1528 680 . 834 Electromagnetic 425 | . 37 49 200 139 . . . Impact . | . . . . . . . . Slashing . | . . . . . . . . Piercing . | . . . . . . . . Highest Corruption 9 | . 3 3 9 . . . . Average Corruption 3 | . 3 3 8 . . . . Corruption Purged . | . . . . . . . . Corruption Blocked . | . . . . . . . . Effects 40 | . 8 22 10 . . . . Message Errors 5 | . 1 2 2 . . . . Matter Fused 11 | . 2 7 2 . . . . Heat Flow Errors 5 | . 2 1 2 . . . . Energy Discharges 11 | . 2 7 2 . . . . Data Loss (minor) 2 | . . 1 1 . . . . Data Loss (major) 1 | . . 1 . . . . . Misfires 4 | . 1 2 1 . . . . Alerts 1 | . . 1 . . . . . Overload Shots . | . . . . . . . . Overflow Damage 260 | . . 20 49 187 . . 4 Projectiles 198 | . . 18 49 131 . . . Explosions 62 | . . 2 . 56 . . 4 Melee . | . . . . . . . . Knockbacks 17 | . . . 4 12 1 . . Impact . | . . . . . . . . Kinetic 16 | . . . 3 12 1 . . Secondary 1 | . . . 1 . . . . Self-Inflicted Damage 363 | . . 10 . 133 104 . 116 Shots 13 | . . 1 . 4 4 . 4 Rammed 1 | . . . . 1 . . . Targets Rammed 1 | . . . . 1 . . . Kicked . | . . . . . . . . Crushed . | . . . . . . . . Highest Temperature 394 | . 271 163 227 394 286 . . Average Temperature 80 | . 69 41 52 90 124 . . Received Heat Transfer 1696 | . 54 27 669 456 283 . 207 Effects 8 | . 3 . . 5 . . . Shutdowns 2 | . . . . 2 . . . Energy Bleed 1 | . . . . 1 . . . Interference 5 | . 3 . . 2 . . . Siege Activations . | . . . . . . . . Robots Corrupted . | . . . . . . . . Combat Hostiles . | . . . . . . . . Parts Fried 2 | . . . 1 1 . . . Impact Corruptions 1 | . . . 1 . . . . Robots Melted . | . . . . . . . . Combat Hostiles . | . . . . . . . . Parts Melted . | . . . . . . . . Heat Transferred 1741 | . 618 . . 383 333 . 407 Parts Sabotaged . | . . . . . . . . Parts Stolen . | . . . . . . . . Parts Stripped . | . . . . . . . . Power Chain Reactions 1 | . . . . 1 . . . Missiles Intercepted . | . . . . . . . . Alert | -11 -10 -10 -9 -8 -8 -7 -7 ------- Run | Jun Mat Min Mat Mat Gar Fac DSF Peak Influence 1029 | . 264 104 199 801 1029 539 434 Initial 539 | . . 13 8 33 497 539 377 Average 320 | . 83 42 85 356 838 539 375 Maximum Alert Level 3 | . 1 . . 3 3 2 2 Low Security (%) 52 | . 96 100 100 27 . . . Level 1 15 | . 3 . . 34 . . 85 Level 2 14 | . . . . 26 23 100 14 Level 3 17 | . . . . 12 76 . . Level 4 . | . . . . . . . . Level 5 . | . . . . . . . . High Security . | . . . . . . . . Max Security . | . . . . . . . . Squads Dispatched 10 | . 2 . . 6 . . 2 Investigation 2 | . 1 . . 1 . . . Extermination . | . . . . . . . . Reinforcement 5 | . 1 . . 2 . . 2 Assault 2 | . . . . 2 . . . Garrison 1 | . . . . 1 . . . Intercept . | . . . . . . . . Searches Triggered . | . . . . . . . . Construction Impeded 1 | . . . . 1 . . . Haulers Reinforced . | . . . . . . . . Active Scanning Responses . | . . . . . . . . Cargo Convoy Interrupts . | . . . . . . . . Stealth | -11 -10 -10 -9 -8 -8 -7 -7 --------- Run | Jun Mat Min Mat Mat Gar Fac DSF Distress Signals 6 | . 2 . 2 2 . . . Communications Jammed . | . . . . . . . . Distress Signals . | . . . . . . . . Times Spotted 154 | . 28 9 22 68 15 . 12 Peak Tracking Total 8 | . 7 3 5 8 6 . 7 Tactical Retreats 11 | . 1 1 . 7 . . 2 Traps | -11 -10 -10 -9 -8 -8 -7 -7 ------- Run | Jun Mat Min Mat Mat Gar Fac DSF Traps Triggered 7 | . 4 . . 2 1 . . Indirectly . | . . . . . . . . Trap Hack Attempts . | . . . . . . . . Triggered . | . . . . . . . . Disarmed . | . . . . . . . . Reprogrammed . | . . . . . . . . Reused . | . . . . . . . . Traps Extracted . | . . . . . . . . Installed . | . . . . . . . . Triggered . | . . . . . . . . Machines | -11 -10 -10 -9 -8 -8 -7 -7 ---------- Run | Jun Mat Min Mat Mat Gar Fac DSF Machines Disabled 12 | . . . . 9 3 . . Max in Single Turn 4 | . . . . 4 1 . . Machines Repaired . | . . . . . . . . Machines Sabotaged . | . . . . . . . . Overloaded Fab Kills . | . . . . . . . . Hacking | -11 -10 -10 -9 -8 -8 -7 -7 --------- Run | Jun Mat Min Mat Mat Gar Fac DSF Machines Accessed 24 | . 7 . 6 6 4 1 . Terminals 19 | . 6 . 4 4 4 1 . Fabricators . | . . . . . . . . Repair Stations 2 | . 1 . 1 . . . . Recycling Units 1 | . . . 1 . . . . Scanalyzers 1 | . . . . 1 . . . Garrison Access 1 | . . . . 1 . . . Total Hacks 59 | . 16 . 17 16 7 3 . Successful 29 | . 11 . 9 6 2 1 . Failed 30 | . 5 . 8 10 5 2 . Catastrophic 4 | . 2 . 1 . 1 . . Database Lockouts . | . . . . . . . . Manual 29 | . 7 . 10 11 1 . . Terminals 46 | . 14 . 11 11 7 3 . Fabricators . | . . . . . . . . Repair Stations 4 | . 2 . 2 . . . . Recycling Units 4 | . . . 4 . . . . Scanalyzers 3 | . . . . 3 . . . Garrison Access 2 | . . . . 2 . . . Terminal Hacks 9 | . 5 . 2 . 1 1 . Prototype ID Bank 1 | . 1 . . . . . . Open Door 1 | . . . . . 1 . . Open DSF 1 | . . . . . . 1 . Terminal Index 1 | . 1 . . . . . . Alert Level 1 | . . . 1 . . . . Zone Layout 4 | . 3 . 1 . . . . Fabricator Hacks . | . . . . . . . . Repair Station Hacks 4 | . 2 . 2 . . . . Scan Component 2 | . 1 . 1 . . . . Repair 2 | . 1 . 1 . . . . Recycling Unit Hacks 2 | . . . 2 . . . . Process 1 | . . . 1 . . . . Retrieve Matter 1 | . . . 1 . . . . Scanalyzer 1 | . . . . 1 . . . Insert Component 1 | . . . . 1 . . . Garrison Access Hacks 1 | . . . . 1 . . . Unlock Access 1 | . . . . 1 . . . Unauthorized Hacks 12 | . 4 . 3 4 1 . . Terminals 12 | . 4 . 3 4 1 . . Botnet 12 | . 4 . 3 4 1 . . Fabricators . | . . . . . . . . Repair Stations . | . . . . . . . . Recycling Units . | . . . . . . . . Scanalyzers . | . . . . . . . . Garrison Access . | . . . . . . . . Data Cores Recovered . | . . . . . . . . Used . | . . . . . . . . Hacking Detections 21 | . 7 . 5 4 4 1 . Full Trace Events 1 | . . . . 1 . . . Feedback Events . | . . . . . . . . Feedback Blocked . | . . . . . . . . Robot Schematics Acquired . | . . . . . . . . Robots Built . | . . . . . . . . Authchips . | . . . . . . . . Time . | . . . . . . . . Total Robot Build Rating . | . . . . . . . . Part Schematics Acquired . | . . . . . . . . Parts Built . | . . . . . . . . Authchips . | . . . . . . . . Time . | . . . . . . . . Total Part Build Rating . | . . . . . . . . Parts Repaired 2 | . 1 . 1 . . . . Time 58 | . 26 . 32 . . . . Parts Recycled . | . . . . . . . . Recycled Matter 181 | . . . 181 . . . . Retrieved Matter 242 | . . . 242 . . . . Retrieved Components . | . . . . . . . . Parts Scanalyzed 1 | . . . . 1 . . . Part Schematics Acquired . | . . . . . . . . Parts Damaged . | . . . . . . . . Bothacking | -11 -10 -10 -9 -8 -8 -7 -7 ------------ Run | Jun Mat Min Mat Mat Gar Fac DSF Used RIF Installer . | . . . . . . . . Robots Hacked . | . . . . . . . . Non-combat . | . . . . . . . . Combat . | . . . . . . . . Robot Hacks Applied . | . . . . . . . . Relay Couplers Released . | . . . . . . . . Fabnet Peak Effective % . | . . . . . . . . Robots Rewired 2 | . . . . . 2 . . Allies Hacked . | . . . . . . . . Hacks Repelled . | . . . . . . . . Allies | -11 -10 -10 -9 -8 -8 -7 -7 -------- Run | Jun Mat Min Mat Mat Gar Fac DSF Total Allies 2 | . . . . . 2 . . Largest Group 2 | . . . . . 2 1 1 Highest-Rated Group 56 | . . . . . 56 31 31 Highest-Rated Ally 31 | . . . . . 31 31 31 Total Orders 2 | . . . . . . . 2 STAY 1 | . . . . . . . 1 FOLLOW 1 | . . . . . . . 1 Ally Attacks 18 | . . . . . 13 . 5 Total Damage 353 | . . . . . 290 . 63 Kills 4 | . . . . . 3 . 1 Allies Corrupted . | . . . . . . . . Allies Melted . | . . . . . . . . Intel | -11 -10 -10 -9 -8 -8 -7 -7 ------- Run | Jun Mat Min Mat Mat Gar Fac DSF Robot Analysis Total . | . . . . . . . . Derelict Logs Recovered 1 | . . 1 . . . . . Drone Launches . | . . . . . . . . Drone Recoveries . | . . . . . . . . Exploration | -11 -10 -10 -9 -8 -8 -7 -7 ------------- Run | Jun Mat Min Mat Mat Gar Fac DSF Turns Passed 7902 | . 1393 1039 970 2820 1396 30 254 Spaces Moved 3271 | 1 607 353 395 1006 808 17 84 Core . | . . . . . . . . Treads 2218 | . . . 303 1006 808 17 84 Legs 1053 | 1 607 353 92 . . . . Wheels . | . . . . . . . . Hover . | . . . . . . . . Flight . | . . . . . . . . Fastest Speed 120 | 120 120 260 160 160 160 160 160 Average Speed 204 | 120 187 260 200 236 160 160 162 Slowest Speed 260 | 120 260 260 240 240 160 160 240 Overloaded Moves . | . . . . . . . . Propulsion Burnouts . | . . . . . . . . Robots Hopped . | . . . . . . . . Cave-ins Triggered . | . . . . . . . . Exploration Rate (%) 50 | 2 90 77 34 78 66 1 55 Regions Visited 7 Branch Regions 1 Pre-discovered Areas . | . . . . . . . . Known Exits Taken 3 | . . . 1 1 . 1 . Unknown Exits Taken 3 | 1 1 1 . . . . . Scrap Searched 1 | . . 1 . . . . . Spaces Dug 5 | . . . . 5 . . . Terrain Destroyed 261 | . . 21 20 157 10 . 53 Melee . | . . . . . . . . Projectile 55 | . . 4 11 37 . . 3 AOE 206 | . . 17 9 120 10 . 50 Terrain Rammed . | . . . . . . . . Walls Destroyed . | . . . . . . . . Machines Disabled . | . . . . . . . . Actions | -11 -10 -10 -9 -8 -8 -7 -7 --------- Run | Jun Mat Min Mat Mat Gar Fac DSF Total 4085 | . 795 440 519 1294 866 19 152 Wait 267 | . 77 60 37 76 10 . 7 Move 3263 | . 606 352 394 1006 804 17 84 Hop . | . . . . . . . . Pick Up 63 | . 24 2 12 21 . . 4 Fast Attach 26 | . 10 . 6 8 1 . 1 Attach 24 | . 1 . 7 6 . 2 8 Detach 2 | . . . 2 . . . . Swap 52 | . 6 4 6 27 8 . 1 Drop 75 | . 17 3 15 35 2 . 3 Fire 303 | . 54 19 40 114 32 . 44 Melee . | . . . . . . . . Ram . | . . . . . . . . Kick . | . . . . . . . . Crush 1 | . . . . 1 . . . Escape Stasis . | . . . . . . . . Rewire 9 | . . . . . 9 . . Trap . | . . . . . . . . Miscellaneous . | . . . . . . . . Route ------- -11/Junkyard -10/Materials (discovered 3 exits: *Mat x2 / [*Min]) -10/Mines -9/Materials (discovered 4 exits: *Mat x2 / Min / *Sto) -8/Materials -8/Garrison (discovered 3 exits: *Fac x3) -7/Factory -7/DSF History --------- Turn | Location | Event 1 | -11/Junkyard | Discovered new exit (range 0) 1 | -11/Junkyard | Entered Materials 231 | -10/Materials | Discovered new exit (range 11) 305 | -10/Materials | Build established: Mutant 453 | -10/Materials | Repaired Assault Rifle 656 | -10/Materials | Discovered new exit (range 13) 807 | -10/Materials | Build established: Scavenger-Mutant 819 | -10/Materials | Core integrity fell below 50% 956 | -10/Materials | Discovered new exit (range 11) 1128 | -10/Materials | Build established: Mutant 1394 | -10/Materials | Entered Mines 1990 | -10/Mines | Excavation squad dispatched 1990 | -10/Mines | A large section of the Mines collapsed 2168 | -10/Mines | Learned 8 Materials zone layouts 2240 | -10/Mines | Excavation squad dispatched 2387 | -10/Mines | Discovered new exit (range 14) 2433 | -10/Mines | Entered Materials 2433 | -9/Materials | Evolved 2 slots: Propulsion x1, Utility x1 2434 | -9/Materials | Identified exit to Materials 2434 | -9/Materials | Identified exit to Storage 2434 | -9/Materials | Identified exit to Mines 2656 | -9/Materials | Repaired Imp. Light Cannon 3087 | -9/Materials | Core integrity fell below 50% 3105 | -9/Materials | Core integrity fell below 20% 3144 | -9/Materials | Lost 4 parts (1p1n1u1w) 3403 | -9/Materials | Entered another Materials area 3403 | -8/Materials | Evolved 2 slots: Power x1, Utility x1 3581 | -8/Materials | Destroyed 7 combat bots 5803 | -8/Materials | First assault squad dispatched 5900 | -8/Materials | Destroyed 8 combat bots 6072 | -8/Materials | Garrison activated, responded to threat 6223 | -8/Materials | Identified exit to Garrison 6223 | -8/Materials | Entered Garrison 6292 | -8/Garrison | Triggered checkpoint 6292 | -8/Garrison | Triggered checkpoint 6333 | -8/Garrison | Triggered checkpoint 6500 | -8/Garrison | Discovered new exit (range 12) 6548 | -8/Garrison | Core integrity fell below 50% 6815 | -8/Garrison | Discovered new exit (range 12) 6876 | -8/Garrison | Triggered checkpoint 7048 | -8/Garrison | Triggered checkpoint 7088 | -8/Garrison | Triggered checkpoint 7102 | -8/Garrison | Discovered new exit (range 14) 7154 | -8/Garrison | Attempted to access garrison exit controls, blocked by remote lockdown 7367 | -8/Garrison | Attempted to access garrison exit controls, blocked by remote lockdown 7619 | -8/Garrison | Entered Factory 7619 | -7/Factory | Accompanied by 1 ally 7619 | -7/Factory | Evolved 2 slots: Utility x2 7649 | -7/Factory | Identified exit to DSF 7649 | -7/Factory | Entered DSF 7649 | -7/DSF | Accompanied by 1 ally 7725 | -7/DSF | Additional patrols routed to DSF 7778 | -7/DSF | Lost 10 parts (2p3n4u1w) 7886 | -7/DSF | Core integrity fell below 50% 7895 | -7/DSF | Core integrity fell below 20% 7903 | -7/DSF | Destroyed by X-67 Chaingunner with Minigun Last Messages --------------- 07867_ Matter Repository disabled. 07867_ S-27 Virus destroyed. 07868_ Penetrated by Slug. 07870_ C3-JXC(g) destroyed. 07871_ Med. Treads destroyed. 07878_ S-27 Virus destroyed. 07884_ Med. Treads destroyed. 07887_ Acquired Lgt. Nuclear Core. 07890_ Hvy. Particle Gun destroyed. 07890_ Penetrated by Slug. 07892_ Destroyed VTOL Module. 07892_ S-27 Virus destroyed. 07892_ Lgt. Nuclear Core destroyed. 07893_ Penetrated by Slug. 07897_ Mni. Grenade Launcher destroyed. 07899_ Critical hit (Burn: +37). 07899_ Penetrated by Slug. 07899_ Med. Treads destroyed. 07901_ Hacking Suite destroyed. 07902_ Penetrated by Slug. Map ----- +----------------------------------------------------+ | ???????????????????????????????????? | | ???????????????????????????????????? | | ???????????????????????????????????? | | ?????????????#?????????????????????? | | ?????????###?????#?????????????????? | | ?????#?##?????##???#???????????????? | | ??????????????#????????????????????? | | ?????#???????#?#??#?? ?????????????? | | ?#?#??#####???????????#????????????? | | ?#?#### ?? ? ? ?????????????????? | | ?#???## #? ?#? ??# ?????????? | | #?#??## ? %% % ???????? | | ?##???# ? ? H ??????? | | ???#??# ^ ??? ? ????? | | ???#?##!! ## # ?!## " ##!! ???? | | ######?!! ## # !### "%" #!??#??? | | #?##??### ###?##### # "## ##????? | | ##?#?###[ [[##?#??# [ #???#? | | ???#?###[ [###??## = [# #????? | | #?????##[ [##?#### [[ ##?#??? | | #?####### ######?## ?#??## | | ###??#?#/ ]]###?### !!#???#??# | | #?#???##/ ]]####?## !!#?##?#?# | | ?#?#?#### # #### !!######## | | ###??#### # [[[ ;## # # | | ##?####"% @ [[[#"%] ### # # | | #?##""""%% x % % | | ####"##"" xx * | | ?####?#""" [[ ;!! !!#!!!# # | | ###??##"" #####!! !!######## | | ??#?###### # # #??####;##"##?????#? | | ####?#?###"######?#?## ## #?#?????? | | ???#?##??""#?????##?### #####?#??#?# | | ?##????####?#########?###?#?#?#????? | | #???##???########?#??#?#?#??##?????? | | ?###???#?#######????#???#####??????? | | ?#?#?????#?##?#?????###?###????????? | | ##??#??????###???###?##?#?##?#?????? | | | | | | | | | | | | | | | | | | | | | | | | | +----------------------------------------------------+ Best States ------------- Heat Dissipation 48 Energy Generation 23 Energy Capacity 450 Matter Stores 300 Matter Capacity 300 Sight Range 16 Terrain Scan Range 16 Terrain Scan Density 210 Armor Coverage 300 Core Shielding 20 Evasion (%) 55 Recoil Reduction 3 Offensive Hacking 10 Item Schematics ----------------- None Robot Schematics ------------------ None Fabricated ------------ Nothing Alien Tech Used ----------------- None Achievements -------------- None Challenges ------------ None Game ------ Seed MyomerMiniRegenerator Manual? 0 Play Time 01:05:12 Cumulative 1047.8 hours Start 2023.03.14 @ 01:51:41 End 2023.03.14 @ 03:00:31 Sessions 3 Manual Loads 0 Difficulty Rogue Special Mode None Game No. 225 Rogue 9 Adventurer 216 Explorer 0 Win Type - Total 5 Types 4/0/1/0/0/0/0/0/0 Lore% 70 Gallery% 84 Achievement% 66 Wizard Run 0 Options --------- ASCII 0 Keyboard 0 Movement Mouse Keybinds 0 Fullscreen 0 Font 16/SmallcapsGlow Map View 76x50 Tactical HUD 1 Map Filters NONE Filters BRIGHTNESS(125)|SATURATION(75)|LOW_CONTRAST(13,24,33)|SHIFT_HUE(130) Steam 1 RUN: 8f20174e-bdd8-4b51-9120-69e40ed8dd89